bitfinex/quotes_ETHUSD_20250602
["timestamp","ask_amount","ask_price","bid_price","bid_amount"]
[1748830458914,2.77402525,2517.7,2517.5,3.97210261]
[1748830459326,2.77402525,2517.7,2517.6,3.97203686]
[1748830459626,2.77402525,2517.7,2517.4,4.78260225]
[1748830459932,2.77402525,2517.7,2517.6,3.97203686]
[1748830462224,2.77402525,2517.9,2517.7,3.97183081]
[1748830462402,2.77402525,2517.9,2517.6,3.97195987]
[1748830462602,2.77402525,2517.9,2517.4,4.78259209]
[1748830462799,3.93811711,2517.9,2517.5,3.97219463]
[1748830463010,3.93811711,2517.9,2517.6,3.97200963]
[1748830463708,4.105,2517.8,2517.6,3.97200963]
[1748830463922,2.77402525,2517.7,2517.5,3.97211197]
[1748830464219,2.77402525,2517.7,2517.5,3.97212706]
[1748830464425,2.77402525,2517.7,2517.6,3.97203686]
[1748830465054,4.105,2517.8,2517.6,3.97203686]
[1748830466554,4.105,2517.8,2517.7,3.97187909]
[1748830466857,4.104,2517.9,2517.8,3.97171517]
[1748830467053,4.48016106,2517.9,2517.8,3.97171517]
[1748830467630,4.104,2517.9,2517.8,3.97171517]
[1748830467860,4.48016375,2517.9,2517.7,3.97179257]
[1748830468056,4.104,2517.9,2517.7,3.97179257]
[1748830468249,4.104,2517.9,2517.6,3.97202015]
[1748830468250,2.77402525,2517.8,2517.6,3.97202015]
[1748830468924,2.77402525,2517.8,2517.7,3.97187909]
[1748830469123,4.104,2517.8,2517.7,3.97184436]
[1748830469439,4.48016735,2517.9,2517.8,3.97172134]
[1748830469758,4.104,2517.9,2517.8,3.97172134]
[1748830469948,4.48017021,2517.9,2517.8,3.97172134]
[1748830470149,4.48017021,2517.9,2517.7,3.97181235]
[1748830470349,4.104,2517.9,2517.7,3.97181235]
[1748830470549,1.3536,2518.2,2517.6,3.97201516]
[1748830470866,4.48021745,2518.1,2517.9,3.97149216]
[1748830471049,4.104,2518.1,2518.0,3.97140587]
[1748830471229,4.48031657,2518.1,2518.0,3.97140587]
[1748830471430,7.25434182,2518.1,2517.8,4.75383566]
[1748830471756,6.87802525,2518.1,2517.9,3.9715636]
[1748830471964,6.87802525,2518.1,2517.9,3.97148506]
[1748830472318,6.87802525,2518.1,2518.0,3.97140587]
[1748830472523,7.25430927,2518.1,2517.9,3.97149022]
[1748830472757,6.87802525,2518.1,2517.9,3.97149022]
[1748830473365,0.8036,2518.4,2518.0,3.97125553]
[1748830473547,0.47031476,2518.5,2518.2,3.97109046]
[1748830473548,0.3762577,2518.3,2518.2,3.97109046]
[1748830473954,4.104,2518.5,2518.2,3.97109046]
[1748830474155,0.37626327,2518.4,2518.2,3.97109046]
[1748830474471,2.77402525,2518.4,2518.2,3.97109046]
[1748830474829,2.77402525,2518.4,2518.3,3.97093277]
[1748830475025,0.37621518,2518.4,2518.3,3.97093277]
[1748830475250,4.104,2518.5,2518.3,3.97093277]
[1748830477263,4.104,2518.5,2518.2,3.97101229]
[1748830477583,2.77402525,2518.4,2518.0,0.8159]
[1748830477747,2.77402525,2518.2,2517.9,3.97146376]
[1748830477931,2.77402525,2518.2,2518.1,3.97123418]
[1748830479632,2.77402525,2518.2,2518.0,4.36847191]
[1748830479960,3.53992525,2518.2,2517.9,3.97148722]
[1748830480364,7.64392525,2518.2,2517.9,3.97148722]
[1748830480535,6.87802525,2518.2,2517.8,3.97156661]
[1748830480866,6.87802525,2518.2,2518.0,3.97130402]
[1748830482488,6.87802525,2518.2,2517.9,3.97148956]
[1748830483173,6.87802525,2518.2,2517.8,3.97167099]
[1748830483373,2.77402525,2518.0,2517.8,3.97172064]
[1748830483676,2.77402525,2518.0,2517.9,3.9715636]
[1748830484072,6.87802525,2518.2,2518.0,3.97140434]
[1748830484453,6.87802525,2518.2,2517.9,3.97155578]
[1748830485175,6.87802525,2518.2,2517.8,3.97159456]
[1748830485481,6.87802525,2518.2,2517.9,3.97156054]
[1748830487174,6.87802525,2518.2,2518.0,3.97140383]
[1748830487473,4.103,2518.1,2518.0,3.97130342]
[1748830487694,3.53992525,2518.4,2518.1,3.97114275]
[1748830487906,3.60672525,2518.6,2518.2,3.97105516]
[1748830488049,0.3758794,2518.5,2518.4,3.9707328]
[1748830488445,0.02,2518.9,2518.6,3.97045977]
[1748830488684,0.02,2518.9,2518.7,3.97017858]
[1748830490496,0.02,2518.9,2518.6,3.97044241]
[1748830490671,0.02,2518.9,2518.7,3.97023636]
[1748830490997,0.02,2518.9,2518.8,3.97014451]
[1748830493711,0.02,2518.9,2518.7,3.97023522]
[1748830493867,2.79402525,2518.9,2518.7,3.97023522]
[1748830494394,0.02,2518.9,2518.8,3.97014451]
[1748830494597,0.02,2518.9,2518.8,4.81177291]
[1748830495472,0.02,2518.9,2518.6,0.47590424]
[1748830495805,0.02,2518.9,2518.5,4.75914521]
[1748830496005,2.77402525,2518.8,2518.5,4.75914521]
[1748830497916,2.77402525,2518.6,2518.3,3.97083089]
[1748830498208,2.77402525,2518.4,2518.0,1.8475]
[1748830498409,2.77402525,2518.4,2518.0,6.40080825]
[1748830498575,4.102,2518.5,2518.2,3.97097589]
[1748830499076,4.102,2518.5,2518.3,3.97093017]
[1748830499816,4.102,2518.5,2518.2,3.97100977]
[1748830500291,4.102,2518.5,2518.1,3.97122872]
[1748830500676,2.77402525,2518.2,2517.9,3.97156336]
[1748830500873,2.77402525,2518.2,2517.9,3.97148723]
[1748830501813,2.77402525,2518.4,2518.1,3.97122741]
[1748830502189,3.97054608,2518.6,2517.7,4.74356393]
[1748830502190,8.0,2518.6,2517.7,4.74356393]
[1748830502514,2.77402525,2518.4,2518.1,0.8032]
[1748830503103,2.77402525,2518.4,2517.9,4.77469715]
[1748830503302,2.77402525,2518.2,2517.8,3.971586]
[1748830503816,2.77402525,2518.2,2517.9,3.97154653]
[1748830505320,2.77402525,2518.4,2517.7,0.8032]
[1748830505615,5.26643794,2518.5,2518.1,3.97115196]
[1748830505910,2.77402525,2518.4,2517.8,3.97158098]
[1748830506122,2.77402525,2518.4,2517.7,0.8032]
[1748830506123,2.77402525,2518.4,2518.0,3.9713212]
[1748830506679,2.77402525,2518.4,2518.1,3.97124748]
[1748830506879,4.102,2518.5,2518.3,3.97092299]
[1748830507080,0.37582295,2518.5,2518.1,4.79712447]
[1748830507291,0.37582295,2518.5,2518.1,4.79706304]
[1748830508615,0.37588014,2518.5,2518.1,4.79706304]
[1748830508814,0.37588014,2518.5,2518.2,3.9710791]
[1748830509128,4.102,2518.6,2518.3,3.97081393]
[1748830509531,1.16448014,2518.7,2518.4,3.97067382]
[1748830509736,0.02,2518.9,2518.1,8.89911141]
[1748830509883,0.02,2518.9,2518.6,3.97035304]
[1748830510496,0.02,2518.9,2518.5,4.79650504]
[1748830510697,0.02,2518.9,2518.7,3.97029909]
[1748830510923,0.02,2518.9,2518.6,3.970377]
[1748830511229,0.02,2518.9,2518.7,3.97018622]
[1748830511447,0.02,2518.9,2518.8,3.97014451]
[1748830511584,0.02,2518.9,2518.8,4.83203987]
[1748830511782,0.02,2518.9,2518.8,5.98967464]
[1748830511981,0.02,2518.9,2518.8,5.94997928]
[1748830512892,0.02,2518.9,2518.8,18.69997928]
[1748830514231,0.02,2518.9,2518.8,19.10613046]
[1748830515405,0.02,2518.9,2518.8,20.18613046]
[1748830515590,0.02,2518.9,2518.8,23.88097928]
[1748830517187,0.02,2518.9,2518.8,18.69997928]
[1748830517423,0.02,2518.9,2518.8,19.77997928]
[1748830517733,0.02,2518.9,2518.8,4.79234451]
[1748830517892,0.02,2518.9,2518.8,3.97014451]
[1748830520903,0.02,2518.9,2518.8,5.05014451]
[1748830522198,0.02,2518.9,2518.8,5.85174451]
[1748830523696,0.02,2518.9,2518.8,4.77174451]
[1748830523944,0.02,2518.9,2518.8,3.97014451]
[1748830524293,0.02,2518.9,2518.8,4.95224764]
[1748830527000,0.02,2518.9,2518.8,5.74014764]
[1748830529160,0.02,2518.9,2518.8,10.92014764]
[1748830529362,0.02,2518.9,2518.8,6.81914764]
[1748830532446,0.02,2518.9,2518.8,10.91914764]
[1748830534632,0.02,2518.9,2518.8,5.74014764]
[1748830534967,0.02,2518.9,2518.8,10.91914764]
[1748830535172,0.02,2518.9,2518.8,6.03124764]
[1748830537070,0.02,2518.9,2518.8,4.95224764]
[1748830537230,0.02,2518.9,2518.8,5.04914451]
[1748830540178,0.02,2518.9,2518.8,3.97014451]
[1748830545576,0.02,2518.9,2518.8,4.75254451]
[1748830546076,0.02,2518.9,2518.8,7.52548973]
[1748830546884,0.02,2518.9,2518.8,4.75254451]
[1748830547064,0.02,2518.9,2518.8,6.01002216]
[1748830547865,0.02,2518.9,2518.8,10.76002216]
[1748830548087,0.02,2518.9,2518.8,15.93902216]
[1748830549494,0.02,2518.9,2518.8,11.05662216]
[1748830549668,0.02,2518.9,2518.8,9.79914451]
[1748830552280,0.02,2518.9,2518.8,8.72014451]
[1748830553876,0.02,2518.9,2518.8,3.97014451]
[1748830555607,0.02,2518.9,2518.8,5.04914451]
[1748830559719,0.02,2518.9,2518.8,5.83764451]
[1748830559922,0.02,2518.9,2518.8,7.50573216]
[1748830560342,0.02,2518.9,2518.8,5.63823216]
[1748830560497,0.02,2518.9,2518.8,9.14914451]
[1748830561225,0.02,2518.9,2518.8,5.04914451]
[1748830561725,0.02,2518.9,2518.8,3.97014451]
[1748830561887,0.02,2518.9,2518.8,5.04914451]
[1748830562340,0.02,2518.9,2518.8,3.97014451]
[1748830562628,0.02,2518.9,2518.8,5.04914451]
[1748830562792,0.02,2518.9,2518.8,3.97014451]
[1748830566937,0.02,2518.9,2518.8,4.87208764]
[1748830567740,0.02,2518.9,2518.8,3.97014451]
[1748830578761,0.7631,2518.8,2518.5,4.75]
[1748830578933,2.77294522,2518.7,2518.5,4.75]
[1748830579136,2.77294522,2518.7,2518.6,3.97045977]
[1748830580060,1.3131,2518.6,2517.7,10.62333217]
[1748830580398,2.77294522,2518.3,2517.9,3.9715636]
[1748830580658,3.97079534,2518.4,2517.9,3.9715636]
[1748830580659,2.77294522,2518.1,2517.9,3.9715636]
[1748830581238,2.77294522,2518.1,2518.0,3.97140587]
[1748830581559,0.7631,2518.2,2518.0,3.97140587]
[1748830581949,2.77294522,2518.1,2517.7,5.0508425]
[1748830582118,2.77294522,2518.1,2517.9,3.9715527]
[1748830582555,2.77294522,2518.1,2517.8,3.97160701]
[1748830582859,2.77294522,2518.1,2517.8,3.97160827]
[1748830583165,0.8284,2517.8,2517.1,1.079]
[1748830583325,2.77294522,2517.6,2517.3,3.97249188]
[1748830583767,2.77294522,2517.6,2517.1,1.079]
[1748830583768,2.77294522,2517.6,2517.2,3.97264973]
[1748830584262,2.77294522,2517.6,2517.3,3.97237104]
[1748830584628,2.77294522,2517.6,2517.4,3.97233264]
[1748830584824,2.77294522,2517.6,2517.3,3.97245554]
[1748830586940,2.77294522,2517.6,2517.4,3.97230815]
[1748830587251,2.77294522,2517.6,2517.1,5.05176961]
[1748830587453,2.77294522,2517.6,2517.2,3.97251131]
[1748830587747,2.77294522,2517.6,2517.3,3.9724875]
[1748830587925,2.77294522,2517.6,2517.4,3.9723517]
[1748830588263,0.7888,2518.1,2517.4,0.79449763]
[1748830588559,6.87294522,2518.5,2517.7,0.8129]
[1748830588750,2.77294522,2518.3,2518.0,3.9713101]
[1748830588918,0.35617452,2518.2,2518.0,3.9713101]
[1748830589122,0.35617452,2518.2,2518.1,3.97124816]
[1748830589547,0.7888,2518.4,2517.8,3.97169089]
[1748830589723,8.02,2518.9,2517.8,3.97169089]
[1748830589724,0.7888,2518.8,2518.0,3.97140587]
[1748830589925,4.1,2518.7,2518.4,3.97064043]
[1748830590123,4.1,2518.6,2518.4,3.97064043]
[1748830590349,4.1,2518.6,2518.5,3.97061743]
[1748830590531,4.58888,2518.6,2518.3,3.97086004]
[1748830591060,4.58888,2518.6,2518.4,3.97067424]
[1748830591260,4.58888,2518.6,2518.5,3.97061743]
[1748830591459,4.1,2518.6,2518.5,3.97061743]
[1748830592567,2.77294522,2518.7,2518.6,3.97045977]
[1748830592768,0.7888,2518.8,2518.7,3.97030213]
[1748830592975,4.8888,2518.8,2518.7,3.97030213]
[1748830593637,4.8888,2518.8,2518.6,3.9703983]
[1748830593837,2.77294522,2518.7,2518.5,3.97053813]
[1748830594944,2.77294522,2518.7,2518.6,3.97045977]
[1748830595432,6.87294522,2518.7,2518.6,3.97045977]
[1748830595635,0.7888,2518.8,2518.7,3.97030213]
[1748830595871,4.8888,2518.8,2518.7,3.97030213]
[1748830596031,0.7888,2518.8,2518.7,3.97030213]
[1748830596235,2.79294522,2518.9,2518.8,3.97014451]
[1748830596456,0.02,2518.9,2518.8,3.97014451]
[1748830597073,4.12,2518.9,2518.8,3.97014451]
[1748830598451,0.02,2518.9,2518.8,3.97014451]
[1748830599143,4.119,2518.9,2518.8,3.97014451]
[1748830599868,0.02,2518.9,2518.8,3.97014451]
[1748830600176,4.119,2518.9,2518.8,3.97014451]
[1748830601071,4.119,2518.9,2518.7,3.97022191]
[1748830601236,0.4119,2518.8,2518.7,3.97022035]
[1748830601441,4.119,2518.9,2518.8,3.97014451]
[1748830606452,0.02,2518.9,2518.8,3.97014451]
[1748830606868,0.02,2518.9,2518.8,4.74404451]
[1748830608074,0.02,2518.9,2518.8,5.82304451]
[1748830610246,0.02,2518.9,2518.8,5.04914451]
[1748830611080,0.02,2518.9,2518.8,3.97014451]
[1748830612269,0.02,2518.9,2518.8,5.317111]
[1748830613270,0.02,2518.9,2518.8,6.087711]
[1748830613471,0.02,2518.9,2518.8,10.837711]
[1748830613674,0.02,2518.9,2518.8,6.087711]
[1748830613885,0.02,2518.9,2518.8,10.185711]
[1748830616728,0.02,2518.9,2518.8,6.087711]
[1748830617028,0.02,2518.9,2518.8,7.165711]
[1748830624825,0.02,2518.9,2518.8,11.915711]
[1748830628059,0.02,2518.9,2518.8,10.067111]
[1748830628231,0.02,2518.9,2518.8,3.97014451]
[1748830631166,0.02,2518.9,2518.3,5.828]
[1748830631356,4.9185,2518.8,2518.6,3.97043689]
[1748830631953,7.69062457,2518.8,2518.3,1.078]
[1748830632133,0.77106246,2518.7,2518.5,3.97052754]
[1748830632570,3.55872457,2518.6,2518.4,3.9707204]
[1748830633134,3.55872457,2518.6,2518.3,5.04889969]
[1748830633329,3.55872457,2518.6,2518.4,3.9706868]
[1748830634148,3.55872457,2518.6,2518.3,5.04889969]
[1748830634362,3.55872457,2518.6,2518.4,3.97070001]
[1748830635177,4.40140327,2518.6,2518.0,8.72126341]
[1748830635377,2.77212457,2518.2,2518.0,3.97130163]
[1748830635539,8.0,2518.1,2517.7,3.97187909]
[1748830635743,0.8052,2518.0,2517.8,3.97163328]
[1748830635962,0.8052,2518.0,2517.9,3.9715636]
[1748830636158,4.9032,2518.0,2517.9,3.9715636]
[1748830637263,4.9022,2518.0,2517.9,3.9715636]
[1748830638594,4.098,2518.0,2517.9,3.9715636]
[1748830639770,5.13525,2518.0,2517.4,1.078]
[1748830639981,1.3245,2517.8,2517.0,3.9729173]
[1748830640178,8.0,2517.7,2517.3,3.97246096]
[1748830640496,4.8725,2517.6,2517.3,3.97246096]
[1748830640858,1.3641,2517.5,2517.1,3.97274577]
[1748830641062,1.3641,2517.5,2517.0,8.72284922]
[1748830641383,1.3641,2517.5,2517.1,3.97280681]
[1748830641571,1.3641,2517.5,2517.2,3.97266804]
[1748830641884,1.3641,2517.5,2517.1,3.97280681]
[1748830642251,1.3641,2517.5,2517.3,3.9724791]
[1748830642671,2.13516246,2517.5,2517.2,3.97258676]
[1748830642877,2.13516246,2517.5,2517.3,3.97249766]
[1748830643478,2.13516246,2517.5,2517.2,3.97266378]
[1748830643844,2.13516246,2517.5,2517.3,3.97248736]
[1748830644804,10.13516246,2517.5,2517.0,4.75]
[1748830645103,10.13516246,2517.5,2516.5,1.078]
[1748830645104,0.55,2516.9,2516.5,1.078]
[1748830645265,8.0,2516.7,2516.5,1.078]
[1748830645596,8.0,2516.7,2516.6,3.97361519]
[1748830647490,8.0,2516.7,2516.5,1.078]
[1748830647667,8.0,2516.7,2516.5,5.05177241]
[1748830648799,8.0,2516.7,2516.6,3.97361519]
[1748830649395,0.8108,2516.8,2516.7,3.9734573]
[1748830649581,12.9108,2516.8,2516.7,3.9734573]
[1748830649958,12.9108,2516.8,2516.6,3.97353427]
[1748830650561,13.39805,2516.8,2516.5,5.0517002]
[1748830651251,13.39805,2516.8,2516.6,3.97358258]
[1748830651457,13.39805,2516.8,2516.7,3.9734573]
[1748830651756,9.29805,2516.8,2516.6,3.97353516]
[1748830651957,12.9108,2516.8,2516.6,3.97361519]
[1748830652157,12.9108,2516.8,2516.7,3.9734573]
[1748830653299,12.9108,2516.8,2516.1,1.099]
[1748830653606,0.7892,2516.4,2516.1,3.99430697]
[1748830653759,4.1,2516.3,2516.1,3.99430697]
[1748830654168,4.1,2516.3,2516.2,3.97424688]
[1748830654372,4.1,2516.3,2516.1,3.99434783]
[1748830654899,4.1,2516.3,2516.1,3.99431781]
[1748830655300,4.1,2516.3,2516.2,3.97424688]
[1748830658263,0.7892,2516.4,2516.3,3.97408894]
[1748830658460,4.8902,2516.4,2516.3,3.97408894]
[1748830658905,5.4402,2516.4,2516.3,3.97408894]
[1748830660106,0.8158,2516.9,2516.2,3.97424688]
[1748830660400,4.651,2516.8,2516.7,3.97340123]
[1748830660916,4.651,2516.8,2516.1,0.02]
[1748830660917,4.651,2516.8,2516.6,3.97356681]
[1748830661115,8.0,2516.7,2516.6,3.97356681]
[1748830661543,8.0,2516.7,2516.1,0.02]
[1748830661544,0.8158,2516.9,2516.8,3.97329942]
[1748830662023,4.9168,2516.9,2516.8,3.97329942]
[1748830662222,2.09906673,2517.8,2517.7,3.97187909]
[1748830662423,8.07234204,2518.1,2517.1,3.9726977]
[1748830662587,14.59735704,2518.0,2516.9,3.97301906]
[1748830662785,0.55,2517.8,2517.4,3.97226339]
[1748830663015,8.0,2517.6,2516.8,5.82625539]
[1748830663220,0.8242,2517.4,2517.3,3.97240877]
[1748830663417,4.9462,2517.4,2517.3,3.97240877]
[1748830663608,4.9462,2517.4,2517.2,3.97259432]
[1748830663804,4.9462,2517.4,2517.0,3.97294735]
[1748830664011,4.9462,2517.4,2517.2,3.97255745]
[1748830664317,13.79317279,2517.4,2517.3,3.97251022]
[1748830664510,14.34317279,2517.4,2517.3,3.97251022]
[1748830665220,14.34017279,2517.4,2517.3,3.97251022]
[1748830667424,14.33817279,2517.4,2517.3,3.97251022]
[1748830668510,13.51397279,2517.4,2517.3,3.97251022]
[1748830669714,8.0,2517.4,2517.3,3.97251022]
[1748830669920,0.8175,2517.8,2517.7,3.97187909]
[1748830670231,4.114,2517.8,2517.7,3.97187909]
[1748830670396,0.8175,2518.1,2517.6,3.9720135]
[1748830670602,12.48944875,2518.0,2517.9,3.9715636]
[1748830670807,12.114,2518.0,2517.9,3.9715636]
[1748830671010,2.0815657,2518.1,2518.0,3.97140587]
[1748830671239,2.45701007,2518.1,2518.0,3.97140587]
[1748830671536,5.4805,2518.1,2517.9,3.97150092]
[1748830672822,5.4805,2518.1,2518.0,3.97140587]
[1748830673210,5.4785,2518.1,2518.0,3.97140587]
[1748830673921,5.4785,2518.1,2517.9,3.97148045]
[1748830675454,0.55,2518.1,2518.0,3.97140587]
[1748830675661,4.659,2518.1,2518.0,3.97140587]
[1748830675807,12.659,2518.1,2518.0,3.97140587]
[1748830676222,8.55,2518.1,2518.0,3.97140587]
[1748830676543,12.658,2518.1,2518.0,3.97140587]
[1748830677235,12.657,2518.1,2518.0,3.97140587]
[1748830679641,8.55,2518.1,2518.0,3.97140587]
[1748830679841,8.55,2518.1,2517.8,3.97168736]
[1748830679842,8.0,2518.1,2517.8,3.97167586]
[1748830680153,12.104,2518.1,2518.0,3.97140587]
[1748830680946,11.97145246,2518.0,2517.5,4.75]
[1748830681151,8.0,2517.8,2517.5,8.72217668]
[1748830681327,4.104,2517.7,2517.5,4.75]
[1748830681526,4.104,2517.7,2517.6,3.97203686]
[1748830681721,0.55,2518.0,2517.7,3.97187909]
[1748830681960,8.0,2517.8,2517.7,3.97187909]
[1748830682130,4.104,2517.8,2517.7,3.97187909]
[1748830682651,4.104,2517.8,2517.7,4.75267909]
[1748830683250,0.8018,2518.3,2517.7,2.12826881]
[1748830683451,0.8018,2518.3,2518.0,3.97127965]
[1748830683452,8.0,2518.1,2518.0,3.97127965]
[1748830685442,8.0,2518.1,2517.7,0.7808]
[1748830685664,4.101,2518.0,2517.7,4.75255487]
[1748830685984,4.101,2518.0,2517.8,3.97169553]
[1748830687347,4.101,2518.0,2517.9,3.9715636]
[1748830688479,4.1,2518.0,2517.9,3.9715636]
[1748830689878,0.55,2518.4,2518.1,3.971161]
[1748830690058,4.1,2518.3,2518.1,3.971161]
[1748830690257,8.0,2518.2,2518.1,3.971161]
[1748830690680,8.0,2518.6,2518.4,3.97066046]
[1748830690880,0.8229,2518.7,2518.4,3.97066046]
[1748830691081,4.1,2518.6,2518.4,3.97077509]
[1748830691250,4.1,2518.5,2518.4,3.97077509]
[1748830691652,0.92599803,2518.8,2518.4,3.97077509]
[1748830691855,0.37599803,2518.8,2518.6,3.97033132]
[1748830692079,8.0,2518.6,2518.4,3.97069508]
[1748830692287,8.0,2518.6,2518.4,3.97066904]
[1748830692500,4.099,2518.5,2518.4,3.97066904]
[1748830693591,8.0,2518.6,2518.4,3.97066904]
[1748830693767,0.55,2518.8,2518.4,0.86982512]
[1748830693967,0.55,2518.8,2518.3,0.7568]
[1748830693968,4.099,2518.7,2518.3,0.7568]
[1748830694189,4.099,2518.7,2518.5,3.97054337]
[1748830695352,4.099,2518.7,2518.3,4.72764808]
[1748830695758,4.099,2518.7,2518.4,3.970753]
[1748830696186,0.55,2518.6,2518.1,0.8093]
[1748830696387,0.55,2518.6,2518.3,3.97085058]
[1748830696905,8.55,2518.6,2518.3,3.97085058]
[1748830697899,4.099,2518.5,2518.3,3.97085058]
[1748830700309,4.099,2518.5,2517.9,9.80454549]
[1748830700310,8.55,2518.4,2517.9,4.75]
[1748830700509,0.795,2518.3,2518.0,3.97140519]
[1748830700723,4.099,2518.2,2518.0,3.97140519]
[1748830701773,0.55,2518.1,2517.9,3.9715451]
[1748830702186,0.55,2518.1,2517.8,3.97158842]
[1748830702604,0.55,2518.1,2517.9,3.97142944]
[1748830704715,0.55,2518.1,2518.0,3.97140587]
[1748830704880,12.099,2518.2,2518.1,3.97124816]
[1748830705079,12.649,2518.2,2518.1,3.97124816]
[1748830706299,8.0,2518.2,2518.1,3.97124816]
[1748830706507,0.7771,2518.7,2518.5,3.97048862]
[1748830706817,4.649,2518.6,2518.5,3.97048862]
[1748830706997,4.649,2518.6,2518.4,3.97070312]
[1748830707194,4.649,2518.6,2518.3,3.9708948]
[1748830707195,0.55,2518.6,2518.3,3.9708948]
[1748830707397,4.099,2518.5,2518.3,3.9708948]
[1748830707722,4.099,2518.5,2518.4,3.97069126]
[1748830710214,12.76709828,2518.9,2518.5,3.97061743]
[1748830710215,8.7971,2518.9,2518.5,3.97061743]
[1748830710416,14.32956856,2518.8,2518.5,3.97061743]
[1748830710715,13.95301256,2518.8,2518.4,3.97069651]
[1748830711616,9.85401256,2518.8,2518.5,3.9706173]
[1748830711821,4.098,2518.7,2518.5,3.9706173]
[1748830712023,4.098,2518.7,2518.4,3.97071378]
[1748830713287,6.87275363,2518.7,2518.4,3.97071378]
[1748830713482,6.87275363,2518.7,2518.5,3.97059868]
[1748830713688,12.098,2518.7,2518.6,3.97045977]
[1748830715826,12.098,2518.7,2518.5,3.97053531]
[1748830716723,12.098,2518.7,2518.6,3.97045977]
[1748830717038,8.0,2518.8,2518.7,3.97030213]
[1748830717191,12.098,2518.8,2518.7,3.97030213]
[1748830718327,12.098,2518.8,2518.6,3.9703723]
[1748830719292,12.098,2518.8,2518.5,3.97053026]
[1748830719636,12.098,2518.8,2518.5,3.97053652]
[1748830720342,12.098,2518.8,2518.6,3.97045621]
[1748830720624,12.098,2518.8,2518.5,3.97058344]
[1748830723945,2.77475363,2518.7,2518.5,3.97058344]
[1748830724109,4.098,2518.6,2518.5,3.97058344]
[1748830724619,4.098,2518.6,2518.5,3.97061743]
[1748830726239,4.098,2518.6,2518.4,3.97068946]
[1748830726542,4.098,2518.6,2518.5,3.97061743]
[1748830727238,4.098,2518.6,2518.4,3.97070136]
[1748830727536,4.098,2518.6,2518.5,3.97061743]
[1748830727749,10.77475363,2518.8,2518.7,3.97030213]
[1748830727924,4.097,2518.8,2518.3,3.97093277]
[1748830728120,4.097,2518.8,2518.6,3.97030517]
[1748830731557,4.097,2518.8,2518.2,0.7554]
[1748830731728,2.77475363,2518.6,2518.2,0.7554]
[1748830731935,4.097,2518.5,2518.3,3.97093277]
[1748830732129,4.097,2518.5,2518.2,4.72643354]
[1748830732130,4.097,2518.5,2518.2,0.7554]
[1748830732330,4.097,2518.5,2518.4,3.97077509]
[1748830733137,4.097,2518.5,2518.3,3.97086304]
[1748830733340,4.097,2518.5,2518.4,3.97077509]
[1748830733836,4.097,2518.5,2518.3,3.97084863]
[1748830734049,4.097,2518.5,2518.4,3.97077509]
[1748830734249,4.097,2518.5,2518.3,3.97083644]
[1748830734469,4.097,2518.5,2518.4,3.97077509]
[1748830740982,4.097,2518.5,2518.3,3.97084329]
[1748830741441,4.097,2518.5,2518.3,3.9709324]
[1748830741631,0.55,2518.3,2517.9,4.75]
[1748830742002,2.77475363,2518.0,2517.7,3.9718031]
[1748830742143,4.097,2517.9,2517.8,3.97170429]
[1748830742776,4.097,2517.9,2517.6,4.76497813]
[1748830742960,4.097,2517.9,2517.8,3.97172134]
[1748830743573,4.097,2517.9,2517.7,3.97179656]
[1748830743954,4.097,2517.9,2517.8,3.97172134]
[1748830744158,4.097,2517.9,2517.7,3.97179945]
[1748830744383,0.55,2517.8,2517.6,3.97200946]
[1748830744588,0.55,2517.8,2517.7,3.97187909]
[1748830745449,4.97805899,2517.8,2517.2,3.97264129]
[1748830745744,2.77475363,2517.5,2517.1,3.97282587]
[1748830745944,2.77475363,2517.3,2516.9,4.3642311]
[1748830746151,0.55,2517.0,2516.6,3.97350315]
[1748830746382,4.097,2516.9,2516.7,3.9734041]
[1748830746589,0.55,2516.6,2516.2,1.8923]
[1748830746748,0.55,2516.6,2516.2,3.97415908]
[1748830746749,8.0,2516.4,2516.2,3.97415908]
[1748830747351,8.0,2516.4,2516.1,3.99432835]
[1748830747961,8.0,2516.4,2516.2,3.9742436]
[1748830748467,9.3075,2516.8,2516.2,4.77110174]
[1748830748668,8.55,2516.6,2516.2,3.97411513]
[1748830748867,8.55,2516.6,2516.3,3.97403667]
[1748830749747,8.0,2516.6,2516.3,3.97403667]
[1748830749949,8.0,2516.6,2516.3,3.97407544]
[1748830750149,8.0,2516.6,2516.2,3.97417031]
[1748830751155,8.0,2516.6,2516.3,3.97403439]
[1748830751574,8.0,2516.6,2516.4,3.97384038]
[1748830751759,8.0,2516.6,2516.1,3.99436736]
[1748830751960,0.55,2516.5,2516.1,0.02]
[1748830752182,4.098,2516.4,2516.1,3.99439649]
[1748830752785,0.55,2516.3,2516.1,0.02]
[1748830752984,8.55,2516.3,2516.1,0.02]
[1748830753290,13.31334265,2516.3,2516.1,0.02]
[1748830753488,9.33924771,2516.3,2516.1,0.02]
[1748830754191,8.55,2516.3,2516.1,0.02]
[1748830754351,8.55,2516.3,2516.1,3.99426404]
[1748830754675,8.55,2516.3,2516.1,0.02]
[1748830754988,4.099,2516.2,2516.1,3.99440483]
[1748830755288,4.099,2516.2,2516.1,0.02]
[1748830755794,4.099,2516.2,2516.1,3.99440483]
[1748830756022,4.08223397,2516.9,2516.3,3.97408894]
[1748830756304,4.099,2516.8,2516.7,3.97336935]
[1748830756581,0.7721,2517.1,2516.8,3.9732591]
[1748830756788,8.0,2516.9,2516.8,3.9732591]
[1748830757000,8.55,2516.9,2516.7,3.97338452]
[1748830757551,8.55,2516.9,2516.7,3.97344749]
[1748830757865,8.55,2516.9,2516.6,3.97357902]
[1748830758270,8.55,2516.9,2516.5,3.97374208]
[1748830758467,0.55,2516.8,2516.2,0.7533]
[1748830758709,0.55,2516.6,2516.3,3.97401724]
[1748830760398,0.55,2516.6,2516.2,3.9742344]
[1748830760593,0.55,2516.6,2516.1,1.098]
[1748830760594,0.55,2516.6,2516.5,3.97377309]
[1748830760811,0.55,2516.6,2516.4,3.97385674]